Cogmind - Beta 17 @@@ ROGUE MODE // 2026.07.03 @ 14:05:35 Player: Minty Result: Destroyed by YA-G2C(R) with Subdweller Laser Performance ------------- Evolutions (0) 0 Regions Visited (2) 400 Robots Destroyed (21) 105 Value Destroyed (551) 551 Prototype IDs (3) 60 Alien Tech Used (0) 0 Bonus (5000) 5000 TOTAL SCORE: 6116 Bonus ------- Prayed to X0-1V1 5000 Cogmind --------- Core Integrity 0/250 Matter 300/300 Energy 72/100 System Corruption 8% Temperature Cool (12) Movement Rolling (95) Ox1 Location -10/Subcaves Parts ------- > --- POWER (1) -------- (None) > --- PROPULSION (2) --- Aluminum Leg Wheel > --- UTILITY (2) ------ Small Storage Unit X0-1V1's Piety Tracker > --- WEAPON (2) ------- Spread Laser Maul (fused) > --- INVENTORY (8) ---- Wheel Mining Laser Peak State ------------ > --- POWER ------------ Light Ion Engine > --- PROPULSION ------- Light Treads Light Treads > --- UTILITY ---------- Small Storage Unit X0-1V1's Piety Tracker > --- WEAPON ----------- Beam Cannon Maul > --- INVENTORY -------- Ion Engine Aluminum Leg Aluminum Leg Wheel Wheel Mining Laser [Rating: 20] Favorites ----------- Power Light Ion Engine Engine Light Ion Engine Propulsion Aluminum Leg Treads Light Treads Leg Aluminum Leg Wheel Wheel Utility Small Storage Unit Device Terrain Scanner Storage Small Storage Unit Processor Signal Interpreter Weapon Beam Cannon Energy Gun Small Laser Energy Cannon Beam Cannon Ballistic Gun Light Assault Rifle Special Weapon Mining Laser Impact Weapon Maul Build | -11 -10 -10 ------- Run | Yrd Mat Sub Slots Evolved . | . . . Power . | . . . Propulsion . | . . . Utility . | . . . Weapon . | . . . Parts Attached 17 | . 15 2 Power 1 | . . 1 Engine 1 | . . 1 Core . | . . . Reactor . | . . . Propulsion 5 | . 4 1 Treads 2 | . 2 . Leg 2 | . 2 . Wheel 1 | . . 1 Hover . | . . . Flight . | . . . Utility 4 | . 4 . Device 3 | . 3 . Storage . | . . . Processor 1 | . 1 . Hackware . | . . . Protection . | . . . Artifact . | . . . Weapon 7 | . 7 . Energy Gun 3 | . 3 . Energy Cannon 1 | . 1 . Ballistic Gun 1 | . 1 . Ballistic Cannon . | . . . Launcher . | . . . Special Weapon 2 | . 2 . Impact Weapon . | . . . Slashing Weapon . | . . . Piercing Weapon . | . . . Special Melee Weapon . | . . . Unidentified Prototypes 1 | . 1 . Parts Lost 10 | . 4 6 Power 2 | . . 2 Propulsion 3 | . . 3 Utility 1 | . 1 . Weapon 4 | . 3 1 Highest Loss Streak 5 | . 2 5 To Critical Strikes . | . . . Average Backups 5 | . 5 4 Power . | . 1 . Propulsion 3 | . 4 3 Utility . | . . . Weapon . | . . 1 Tool/Special . | . . . Unused Backups 6 | . 3 3 Power 2 | . 1 1 Propulsion 1 | . . 1 Utility 1 | . 1 . Weapon 2 | . 1 1 Tool/Special . | . . . Average Slot Usage (%) 95 | . 97 87 Engine 12 | . 14 7 Treads 13 | . 13 12 Leg 13 | . 13 14 Device 12 | . 12 14 Storage 14 | . 14 14 Energy Gun 11 | . 12 4 Energy Cannon 9 | . 10 5 Ballistic Gun 1 | . 1 . Special Weapon 2 | . 2 3 Impact Weapon 2 | . . 10 Peak Build Rating 20 | . 19 20 Average Rating 10 | . 8 19 On Entrance 10 | 6 6 19 Avg Prop Armor Cover (%) . | . . . Naked Turns . | . . . Heaviest Build 17 | 10 13 17 Greatest Support 40 | 20 40 40 Greatest Overweight (x) 1 | . . 1 Average Overweight (x) . | . . . Largest Inventory Capacity 8 | . 8 8 Average Capacity 8 | . 8 8 Most Carried 8 | . 8 6 Average Carried 5 | . 5 4 Final Capacity 8 | 8 8 8 Final Carried 6 | 6 6 2 Class Distribution -------------------- 100% | Mutant Dominant Class ---------------- Mutant | -10/Materials Mutant | -10/Subcaves Resources | -11 -10 -10 ----------- Run | Yrd Mat Sub Matter Collected 355 | 200 89 66 Remotely . | . . . Salvage Created 714 | . 567 147 Parts 41 | . 33 8 Haulers Intercepted . | . . . Recyclers Shooed . | . . . Parts Field Recycled . | . . . Retrieved Matter . | . . . Parts Self-Destructed 7 | . . 7 Prevented . | . . . Parts Restored . | . . . Kills | -11 -10 -10 ------- Run | Yrd Mat Sub Combat Hostiles Destroyed 18 | . 14 4 Melee 1 | . . 1 Guns 8 | . 7 1 Cannons 6 | . 6 . Classes Destroyed 6 | . 5 1 Worker 1 | . 1 . Builder 1 | . 1 . Recycler 1 | . 1 . Swarmer 5 | . 5 . Grunt 9 | . 9 . Subdweller 4 | . . 4 Best Kill Streak 8 | . 8 2 Combat Bots Only 6 | . 6 2 Max Kills in Single Turn 1 | . 1 1 Gunslinging . | . . . Exploded . | . . . Melee 1 | . . 1 Uniques/NPCs Destroyed . | . . . Combat | -11 -10 -10 -------- Run | Yrd Mat Sub Hostile Shots Fired 144 | . 84 60 Missed 41 | . 21 20 Hits 103 | . 63 40 Projectile 103 | . 63 40 Critical Strikes 2 | . . 2 Damage Taken 1601 | . 752 849 Core 266 | . 60 206 Absorbed by Shields . | . . . Regen/Repaired (Parts) 143 | . 143 . Core Remaining (%) 100 | 100 . . Volleys Fired 64 | . 61 3 Largest 2 | . 2 1 Hottest 100 | . 100 65 Shots Fired 78 | . 75 3 Gun 38 | . 36 2 Cannon 27 | . 26 1 Launcher . | . . . Special 13 | . 13 . Kinetic 9 | . 9 . Thermal 51 | . 48 3 Explosive . | . . . Electromagnetic 18 | . 18 . Robot Hit Streak 12 | . 8 12 Robot Miss Streak 6 | . 6 1 Penetration Max . | . . . Secondary Targets . | . . . Shots Hit Robots 57 | . 39 18 Core Hits 23 | . 19 4 Critical Kills 1 | . 1 . Critical Parts Destroyed 2 | . . 2 Critical Strikes 4 | . 1 3 Meltdown 1 | . 1 . Smash 3 | . . 3 Melee Attacks 19 | . . 19 Impact 19 | . . 19 Slashing . | . . . Piercing . | . . . Sneak Attacks . | . . . Combat Hostiles . | . . . Follow-up Attacks . | . . . Damage Inflicted 1164 | . 654 510 Guns 298 | . 279 19 Cannons 369 | . 351 18 Explosions . | . . . Melee 473 | . . 473 Ramming . | . . . Kinetic 52 | . 52 . Thermal 477 | . 440 37 Explosive . | . . . Electromagnetic 162 | . 162 . Impact 473 | . . 473 Slashing . | . . . Piercing . | . . . Highest Corruption 8 | . 8 8 Average Corruption 8 | . 8 8 Corruption Purged . | . . . Corruption Blocked . | . . . Effects 6 | . 1 5 Message Errors 5 | . 1 4 Heat Flow Errors 1 | . . 1 Overload Shots . | . . . Overflow Damage 79 | . 11 68 Projectiles 11 | . 11 . Explosions . | . . . Melee 68 | . . 68 Knockbacks 8 | . . 8 Impact 8 | . . 8 Kinetic . | . . . Secondary . | . . . Self-Inflicted Damage . | . . . Shots . | . . . Rammed . | . . . Targets Rammed 1 | . 1 . Kicked 1 | . 1 . Crushed . | . . . Highest Temperature 262 | . 262 146 Average Temperature 80 | . 80 87 Received Heat Transfer 210 | . 114 96 Siege Activations . | . . . Martial Activations . | . . . Shielding Activations . | . . . Robots Disrupted . | . . . Combat Hostiles . | . . . Robots Corrupted 2 | . . 2 Combat Hostiles 2 | . . 2 Parts Fried . | . . . Impact Corruptions 2 | . . 2 Robots Melted 1 | . 1 . Combat Hostiles 1 | . 1 . Parts Melted 1 | . 1 . Heat Transferred 1007 | . 940 67 Parts Sabotaged . | . . . Parts Stolen . | . . . Parts Stripped . | . . . Power Chain Reactions . | . . . Alert | -11 -10 -10 ------- Run | Yrd Mat Sub Maximum Alert Level 1 | . 1 . Low Security (%) 99 | . 99 . Level 1 . | . . . Level 2 . | . . . Level 3 . | . . . Level 4 . | . . . Level 5 . | . . . High Security . | . . . Max Security . | . . . Peak Influence 207 | . 207 . Initial . | . . . Average 110 | . 110 . Influence Increases 422 | . 422 . Destroy 0b10 Robot/C 280 | . 280 . Destroy 0b10 Robot/NC 15 | . 15 . Destroy Leader 60 | . 60 . Successful Hack 5 | . 5 . Select Force Hacks 30 | . 30 . Disable Machine 15 | . 15 . Destroy Structure 2 | . 2 . Lose Combat Pursuer 15 | . 15 . Influence Decreases 422 | . 332 90 Entered New Map 44 | . . 44 Time Decay 312 | . 292 20 Lost Part 66 | . 40 26 Squads Dispatched 3 | . 3 . Investigation 2 | . 2 . Extermination . | . . . Reinforcement 1 | . 1 . Assault . | . . . Garrison . | . . . Intercept . | . . . Searches Triggered . | . . . Construction Impeded . | . . . Haulers Reinforced . | . . . Active Scanning Responses . | . . . Cargo Convoy Interrupts . | . . . Stealth | -11 -10 -10 --------- Run | Yrd Mat Sub Distress Signals 1 | . 1 . Communications Jammed . | . . . Distress Signals . | . . . Times Spotted 28 | . 20 8 Peak Tracking Total 5 | . 5 5 Tactical Retreats 1 | . 1 . Traps | -11 -10 -10 ------- Run | Yrd Mat Sub Traps Triggered . | . . . Indirectly . | . . . Trap Hack Attempts . | . . . Triggered . | . . . Disarmed . | . . . Reprogrammed . | . . . Reused . | . . . Traps Extracted . | . . . Installed . | . . . Triggered . | . . . Machines | -11 -10 -10 ---------- Run | Yrd Mat Sub Machines Disabled 1 | . 1 . Max in Single Turn 1 | . 1 . Machines Repaired . | . . . Machines Dismantled . | . . . Machines Sabotaged . | . . . Overloaded Fab Kills . | . . . Hacking | -11 -10 -10 --------- Run | Yrd Mat Sub Machines Accessed 3 | . 3 . Terminals 1 | . 1 . Fabricators . | . . . Repair Stations 1 | . 1 . Recycling Units 1 | . 1 . Scanalyzers . | . . . Garrison Access . | . . . Total Hacks 10 | . 10 . Successful 8 | . 8 . Failed 2 | . 2 . Catastrophic 2 | . 2 . Database Lockouts . | . . . Manual 4 | . 4 . Terminals 4 | . 4 . Fabricators . | . . . Repair Stations 4 | . 4 . Recycling Units 2 | . 2 . Scanalyzers . | . . . Garrison Access . | . . . Terminal Hacks 2 | . 2 . Record 1 | . 1 . Prototype ID Bank 1 | . 1 . Fabricator Hacks . | . . . Repair Station Hacks 4 | . 4 . Scan Component 2 | . 2 . Repair 2 | . 2 . Recycling Unit Hacks 1 | . 1 . Report Inventory 1 | . 1 . Scanalyzer . | . . . Garrison Access Hacks . | . . . Unauthorized Hacks 1 | . 1 . Terminals . | . . . Fabricators . | . . . Repair Stations . | . . . Recycling Units 1 | . 1 . Tunnel 1 | . 1 . Scanalyzers . | . . . Garrison Access . | . . . Data Cores Recovered . | . . . Used . | . . . Hacking Detections 2 | . 2 . Full Trace Events 1 | . 1 . Feedback Events . | . . . Feedback Blocked . | . . . Robot Schematics Acquired . | . . . Robots Built . | . . . Authchips . | . . . Time . | . . . Total Robot Build Rating . | . . . Part Schematics Acquired . | . . . Parts Built . | . . . Authchips . | . . . Time . | . . . Total Part Build Rating . | . . . Part Studies Acquired . | . . . Parts Repaired 2 | . 2 . Time 52 | . 52 . Parts Recycled . | . . . Recycled Matter . | . . . Retrieved Matter . | . . . Retrieved Components . | . . . Parts Scanalyzed . | . . . Part Schematics Acquired . | . . . Parts Damaged . | . . . Bothacking | -11 -10 -10 ------------ Run | Yrd Mat Sub Used RIF Installer . | . . . Robots Hacked . | . . . Non-combat . | . . . Combat . | . . . Robot Hacks Applied . | . . . Relay Couplers Released . | . . . Fabnet Peak Effective % . | . . . Robots Rewired . | . . . Allies Hacked . | . . . Hacks Repelled . | . . . Allies | -11 -10 -10 -------- Run | Yrd Mat Sub Total Allies . | . . . Largest Group . | . . . Highest-Rated Group . | . . . Highest-Rated Ally . | . . . Total Orders . | . . . Ally Attacks . | . . . Total Damage . | . . . Kills . | . . . Allies Corrupted . | . . . Allies Melted . | . . . X0-1V1 Amusement Gains 33 | . 33 . Good Acts 2 | . . 2 Intel | -11 -10 -10 ------- Run | Yrd Mat Sub Active Infowar (turns) 328 | . 328 . Terrain 328 | . 328 . Robot Analysis Total . | . . . Derelict Logs Recovered . | . . . Drone Launches . | . . . Drone Recoveries . | . . . Exploration | -11 -10 -10 ------------- Run | Yrd Mat Sub Turns Passed 837 | . 675 162 Spaces Moved 383 | 1 310 72 Core . | . . . Treads 154 | . 134 20 Legs 228 | 1 176 51 Wheels 1 | . . 1 Hover . | . . . Flight . | . . . Fastest Speed 95 | 120 120 95 Average Speed 136 | 120 137 130 Slowest Speed 160 | 120 160 160 Overloaded Moves . | . . . Propulsion Burnouts . | . . . Robots Hopped . | . . . Potential Cave-ins 1 | . 1 . Cave-ins Triggered 1 | . 1 . Exploration Rate (%) 15 | 2 39 5 Regions Visited 2 Branch Regions 1 Pre-discovered Areas 1 | . 1 . Known Exits Taken . | . . . Unknown Exits Taken 2 | 1 1 . Scrap Searched . | . . . Spaces Dug 6 | . 6 . Terrain Destroyed 7 | . 7 . Melee . | . . . Projectile 7 | . 7 . AOE . | . . . Terrain Rammed . | . . . Walls Destroyed . | . . . Machines Disabled . | . . . Actions | -11 -10 -10 --------- Run | Yrd Mat Sub Total 558 | . 457 101 Wait 67 | . 64 3 Move 381 | . 309 72 Hop . | . . . Pick Up 4 | . 4 . Fast Attach 4 | . 4 . Attach 9 | . 5 4 Detach 2 | . 2 . Swap 6 | . 6 . Drop 1 | . 1 . Fire 64 | . 61 3 Melee 19 | . . 19 Ram . | . . . Kick 1 | . 1 . Crush . | . . . Escape Stasis . | . . . Rewire . | . . . Trap . | . . . Miscellaneous . | . . . Route ------- -11/Scrapyard -10/Materials (discovered 3 exits: [*Mat] / [*Min] / [*Sub]) -10/Subcaves History --------- Turn | Location | Event 1 | -11/Scrapyard | Discovered new exit (range 0) 1 | -11/Scrapyard | Entered Materials 140 | -10/Materials | Discovered new exit (range 15) 234 | -10/Materials | Discovered new exit (range 4) 291 | -10/Materials | Repaired Aluminum Leg 312 | -10/Materials | Build established: Mutant 319 | -10/Materials | Repaired Aluminum Leg 618 | -10/Materials | Prayed at D.C.S.S. Altar Unit 627 | -10/Materials | Crushed by falling debris 671 | -10/Materials | Discovered new exit (range 3) 676 | -10/Materials | Entered Subcaves 677 | -10/Subcaves | Approached by a straggling Scientist 754 | -10/Subcaves | Core integrity fell below 50% 782 | -10/Subcaves | Lost 5 parts (2p2n1w) 830 | -10/Subcaves | Core integrity fell below 20% 838 | -10/Subcaves | Destroyed by YA-G2C(R) with Subdweller Laser Last Messages --------------- 00757_ 8V-OBX(R) suffers critical hit (Smash). 00757_ 8V-OBX(R) knocked back. 00764_ Subatomizers dissect the Corrupted Disposable Heat Sink. 00764_ 8V-OBX(R) suffers critical hit (Smash). 00764_ Destroyed Sub. Power Source. 00764_ 8V-OBX(R) system corrupted by crushing effect. 00764_ 8V-OBX(R) misfires. 00765_ 8V-OBX(R) system terminally corrupted. 00766_ 3P-RG7(R) system corrupted by crushing effect. 00768_ 3P-RG7(R) suffers critical hit (Smash). 00768_ 3P-RG7(R) destroyed. 00771_ Acquired 6 matter. 00773_ XB3S0/MYXTB|2R A#W H,QW9:J4BYM|WLG 00778_ Subatomizers dissect the Corrupted Disposable Heat Sink. 00778_ X0-1V1 smiles upon you. (Received Spread Laser) 00805_ QJQI,WYS<2Q%0JKWU /LPRZ|QY0JRTFSU92LOEV 00834_ IG-U6E(R) destroyed. 00834_ Aluminum Leg destroyed. 00837_ Acquired 10 matter. 00838_ X0-1V1 snickers! Map ----- +----------------------------------------------------+ | ?????????????????????????????????????????????????? | | ?????????????????????????????????????????????????? | | ?????????????????????????????????????????????????? | | ?????????????????????????????????????????????????? | | ?????????????????????????????????????????????????? | | ?????????????????????????????????????????????????? | | ???????????? ????????? ??????????????????????????? | | ????????????? ???????# ??????????????????????????? | | ????????????? ?##???# ??????????????????????????? | | ??????????????" #" ### ""???? #??????????????????? | | ???????????????? """" """"" #??????????????????? | | ????????????????? "" """"" #???????????????????? | | ??????????????????# """""" #???????????????????? | | ??????????????????? """" ?????????????????????? | | ????????????????????# """"#??????????????????????? | | ?????????????????????# "#?###"?????????????????? | | ?????????????????????# "##" """????????????????? | | ?????????????????????## ## " ?????????????????? | | ?????????????????????## # ""?????????????????? | | ???????????????????### "" " ""?????????????????? | | ???????????????????# """ """"""????????????????? | | ???????????????????## """"""#????????????????? | | ????????????????????## ###"""#?????????????????? | | ????????????????????## "#### "#??????????????????? | | ?????????????????#### " ##! R"###????????????????? | | ?????????????????# "" &@&!"" "##???????????????? | | ?????????????????## """ *R"" "###?????????????? | | ??????????????????## "" # " #?????????????? | | ???????????????????### "### #" ##?????????????? | | ?????????????????????# "#?# # " #####??????? | | ????????????????????? ""?##"## " " ##???? | | ???????????????????? """"??####" ### #??? | | ??????????????????? """?????### %! #???? | | ?????????????????? %?????????# ##???? | | ????????????????? %?????#####*& % ##????? | | ???????????????? #????##%|=!&%& % ###?????? | | ??????????????? ? ?????#%& [&%### ##???????? | | ??????????????? ?? ??????##& !!##??# #????????? | | ??????????????? ????????????######???? #????????? | | ?????????????????????????????????????? #???????? | | ?????????????????????????????????????? #???????? | | ??????????????????????????????????????? ???????? | | ???????????????????????????????????????####??????? | | ?????????????????????????????????????????????????? | | ?????????????????????????????????????????????????? | | ?????????????????????????????????????????????????? | | ?????????????????????????????????????????????????? | | ?????????????????????????????????????????????????? | | ?????????????????????????????????????????????????? | | ?????????????????????????????????????????????????? | +----------------------------------------------------+ Best States ------------- Heat Dissipation 39 Energy Generation 10 Energy Capacity 250 Matter Stores 300 Matter Capacity 300 Sight Range 16 Terrain Scan Range 14 Terrain Scan Density 10 Evasion (%) 55 Recoil Reduction 2 Item Schematics ----------------- None Robot Schematics ------------------ None Fabricated ------------ Nothing Repaired ---------- Aluminum Leg | 5% | -10/Materials Aluminum Leg | 35% | -10/Materials Studied --------- None Alien Tech Used ----------------- None Achievements -------------- None Challenges ------------ None Game ------ Seed BeamDrainedFist Manual? 0 Play Time 00:09:41 Cumulative 1332.4 hours Start 2026.07.03 @ 13:23:44 End 2026.07.03 @ 14:05:35 Sessions 3 Manual Loads 0 Difficulty Rogue Special Mode None Game No. 1632 Rogue 1348 Adventurer 124 Explorer 160 Win Type - Total 67 Types 52/0/9/4/1/0/0/1/0/0 Lore% 93 Gallery% 84 Achievement% 72 Wizard Run 0 Options --------- Layout 0 ASCII 0 Keyboard 1 Movement Numpad Keybinds 0 Fullscreen 2 Font 18/X11 Map View 76x50 Zoom Use 0% Tactical HUD 1 Map Filters NONE Filters NONE Steam 1 RUN: 2579ca1b-6771-4268-a4d4-71f94b4da748